bitfinex/quotes_SOLUSD_20250226
["timestamp","ask_amount","ask_price","bid_price","bid_amount"]
[1740601086752,0.063,132.01,131.95,15.7]
[1740601086963,0.85783843,131.95,131.87,136.8]
[1740601087247,0.85783843,131.95,131.87,15.66]
[1740601087456,0.85783843,131.98,131.87,17.25159304]
[1740601087662,0.85783843,131.94,131.85,143.72]
[1740601087837,1.14216157,131.98,131.85,143.72]
[1740601088041,0.85783843,131.92,131.85,143.72]
[1740601088437,0.85783843,131.9,131.85,143.72]
[1740601088657,0.85783843,131.88,131.78,15.66]
[1740601088844,0.85783843,131.89,131.81,20.0]
[1740601089044,0.85783843,131.9,131.79,1.59272967]
[1740601089249,0.85783843,131.9,131.78,15.66]
[1740601089451,0.85783843,131.88,131.81,20.0]
[1740601089641,0.85783843,131.83,131.78,15.66]
[1740601089836,0.85783843,131.81,131.69,136.8]
[1740601090050,0.85783843,131.79,131.67,152.44]
[1740601090356,0.85783843,131.77,131.67,15.64]
[1740601090534,0.85783843,131.78,131.67,15.64]
[1740601090744,0.85783843,131.81,131.68,1.59405446]
[1740601091051,0.85783843,131.81,131.68,136.8]
[1740601091255,11.39213843,131.82,131.71,20.0]
[1740601091453,10.5343,131.82,131.71,156.8]
[1740601091657,10.5343,131.82,131.72,1.59326388]
[1740601091957,11.39213843,131.82,131.71,156.8]
[1740601092172,10.5343,131.82,131.72,1.59348005]
[1740601092336,0.85783843,131.88,131.73,0.71080785]
[1740601092542,0.85783843,131.86,131.76,20.0]
[1740601092756,0.85783843,131.81,131.68,136.8]
[1740601092943,0.85783843,131.82,131.69,1.59356173]
[1740601093144,0.85783843,131.85,131.72,20.0]
[1740601093346,0.85783843,131.8,131.67,152.44]
[1740601093557,0.85783843,131.81,131.68,1.59379741]
[1740601093766,0.85783843,131.85,131.71,20.0]
[1740601094059,83.75783843,131.89,131.72,1.59286373]
[1740601094262,0.85783843,131.88,131.73,0.56864628]
[1740601094447,12.7997,131.9,131.76,20.71080785]
[1740601094642,12.7997,131.9,131.8,20.0]
[1740601094959,12.7997,131.9,131.81,1.59250517]
[1740601095773,12.7997,131.9,131.84,20.0]
[1740601096243,0.85783843,131.87,131.77,143.56]
[1740601096447,12.7997,131.9,131.77,128.02]
[1740601096448,0.85783843,131.83,131.77,128.02]
[1740601096753,0.85783843,131.8,131.7,219.2]
[1740601096962,0.85783843,131.78,131.69,128.02]
[1740601097144,82.963,131.82,131.72,20.0]
[1740601097339,82.963,131.82,131.7,1.59395456]
[1740601097340,83.82083843,131.82,131.7,1.59395456]
[1740601097560,0.85783843,131.8,131.69,264.82]
[1740601097951,82.963,131.82,131.7,1.59377061]
[1740601098155,0.85783843,131.8,131.69,264.82]
[1740601098347,0.063,131.82,131.7,1.59374976]
[1740601098742,0.85783843,131.81,131.7,1.59374976]
[1740601098963,0.063,131.82,131.7,138.39374976]
[1740601099172,0.85783843,131.79,131.73,20.0]
[1740601099476,0.85783843,131.78,131.69,128.02]
[1740601099964,0.063,131.82,131.7,0.56864628]
[1740601099965,0.85783843,131.81,131.7,0.56864628]
[1740601100165,0.063,131.82,131.73,20.0]
[1740601100345,0.063,131.82,131.74,1.59283321]
[1740601100553,0.063,131.82,131.75,15.32]
[1740601100752,0.92083843,131.82,131.75,15.32]
[1740601101056,0.063,131.82,131.78,20.0]
[1740601101376,0.063,131.82,131.78,158.39252079]
[1740601101558,0.063,131.82,131.79,0.56864628]
[1740601101871,0.063,131.82,131.8,1.59197076]
[1740601102058,0.063,131.82,131.81,0.56864628]
[1740601102251,0.063,131.82,131.81,221.36030475]
[1740601102447,0.063,131.82,131.81,219.76864628]
[1740601102968,10.8582,131.97,131.85,0.56864628]
[1740601103150,10.8582,131.97,131.89,0.56864628]
[1740601103506,2.6964,131.98,131.92,20.0]
[1740601103677,0.85783843,131.97,131.9,136.8]
[1740601103971,0.85783843,131.97,131.85,15.2]
[1740601103972,0.85783843,131.94,131.85,15.2]
[1740601104154,0.85783843,131.93,131.88,20.0]
[1740601104467,0.85783843,131.96,131.88,20.0]
[1740601104658,3.55423843,131.98,131.89,20.0]
[1740601104859,2.6964,131.98,131.89,20.0]
[1740601105449,3.55423843,131.98,131.89,156.8]
[1740601105652,3.55423843,131.98,131.9,1.5912639]
[1740601105653,2.6964,131.98,131.9,1.5912639]
[1740601105854,2.6964,131.98,131.93,20.0]
[1740601106076,2.6964,131.98,131.85,15.2]
[1740601106077,0.85783843,131.96,131.85,219.2]
[1740601106377,3.55423843,131.98,131.89,20.0]
[1740601106554,2.6964,131.98,131.9,1.5911066]
[1740601106867,3.55423843,131.98,131.89,156.8]
[1740601107166,2.6964,131.98,131.93,20.0]
[1740601107366,2.6964,131.98,131.94,1.59058807]
[1740601107562,2.6964,131.98,131.94,83.99058807]
[1740601107763,0.85783843,131.97,131.9,127.92]
[1740601107973,0.85783843,131.93,131.82,127.92]
[1740601108168,0.85783843,131.96,131.83,1.59186174]
[1740601108357,0.85783843,131.96,131.86,20.0]
[1740601108550,0.85783843,131.91,131.83,82.4]
[1740601108756,0.85783843,131.96,131.83,220.79194639]
[1740601108960,0.85783843,131.96,131.84,0.31432314]
[1740601109165,2.6964,131.98,131.87,20.28432314]
[1740601109482,3.61723843,131.98,131.88,1.59080812]
[1740601109670,2.7594,131.98,131.89,0.28432314]
[1740601109855,2.7594,131.98,131.93,20.0]
[1740601110056,2.7594,131.98,131.94,1.59089617]
[1740601110258,2.7594,131.98,131.93,156.8]
[1740601110852,2.7594,131.98,131.93,20.0]
[1740601111258,2.7594,131.98,131.93,156.8]
[1740601111575,0.063,131.98,131.94,1.5907422]
[1740601111875,3.86136395,131.97,131.92,127.9]
[1740601112066,0.85783843,131.96,131.92,127.9]
[1740601112266,3.86136395,131.97,131.92,127.9]
[1740601112572,0.063,131.98,131.95,20.0]
[1740601112772,0.063,131.98,131.96,20.0]
[1740601113289,0.063,131.98,131.96,158.3905219]
[1740601113469,0.063,131.98,131.97,1.59030224]
[1740601114464,0.063,131.98,131.96,20.0]
[1740601114674,0.063,131.98,131.93,1.59069687]
[1740601114877,0.063,131.98,131.95,20.0]
[1740601115062,0.063,131.98,131.93,1.59069687]
[1740601115672,0.063,131.98,131.96,20.0]
[1740601115876,0.063,131.98,131.96,36.45042052]
[1740601116067,0.063,131.98,131.96,34.86]
[1740601116870,0.063,131.98,131.97,1.59040711]
[1740601117600,0.063,132.01,131.97,221.35905339]
[1740601117895,0.063,132.01,132.0,20.71080785]
[1740601118072,0.063,132.13,132.03,0.14216157]
[1740601118273,0.063,132.13,132.07,20.71080785]
[1740601118469,0.063,132.13,132.09,0.71080785]
[1740601118668,0.063,132.13,132.1,2.29893974]
[1740601118895,0.063,132.13,132.1,221.49893974]
[1740601119201,0.063,132.13,132.1,219.76864628]
[1740601119564,0.063,132.13,132.12,20.56864628]
[1740601119763,0.2419208,132.14,132.13,1.42648471]
[1740601119981,0.2419208,132.14,132.13,140.09821559]
[1740601120163,0.2419208,132.14,132.13,137.51080785]
[1740601120476,0.2419208,132.14,132.13,138.51080785]
[1740601120676,0.2419208,132.14,132.13,137.36864628]
[1740601120879,0.2419208,132.14,132.13,136.8]
[1740601121170,0.2419208,132.14,132.13,151.44]
[1740601121363,0.2419208,132.14,132.13,14.64]
[1740601122799,0.2419208,132.14,132.13,151.72432314]
[1740601122968,0.063,132.25,132.16,20.0]
[1740601123166,0.063,132.25,132.2,20.0]
[1740601123592,0.85783843,132.23,132.2,20.0]
[1740601123796,0.85783843,132.19,132.17,127.74]
[1740601123978,0.85783843,132.14,132.07,127.74]
[1740601124185,0.85783843,132.11,132.07,129.32898345]
[1740601124381,0.85783843,132.12,132.07,127.74]
[1740601124582,0.85783843,132.14,132.08,1.58917811]
[1740601124787,0.85783843,132.15,132.11,20.0]
[1740601125180,0.85783843,132.15,132.09,1.58887088]
[1740601125377,0.85783843,132.11,132.07,127.74]
[1740601125687,0.85783843,132.09,132.07,127.74]
[1740601126032,0.85783843,132.13,132.07,127.74]
[1740601126309,2.5572,132.16,132.07,127.74]
[1740601126310,2.5572,132.16,132.1,20.0]
[1740601126487,2.5572,132.16,132.11,1.58837322]
[1740601126688,2.5572,132.16,132.15,20.0]
[1740601127708,3.41503843,132.16,132.12,151.2]
[1740601127908,0.85783843,132.15,132.12,14.4]
[1740601128086,3.41503843,132.16,132.1,14.36]
[1740601128275,2.5572,132.16,132.13,20.0]
[1740601128481,0.85783843,132.18,132.14,1.58858753]
[1740601128696,0.85783843,132.21,132.17,20.0]
[1740601128896,2.7457,132.23,132.17,300.42787944]
[1740601129101,2.7457,132.23,132.17,298.84]
[1740601129289,0.063,132.25,132.18,0.28432314]
[1740601129492,0.063,132.25,132.21,20.0]
[1740601129710,0.063,132.25,132.22,20.0]
[1740601129926,0.063,132.25,132.23,1.58720922]
[1740601130129,0.063,132.25,132.24,14.3]
[1740601132138,0.85783843,132.22,132.18,136.8]
[1740601132429,0.063,132.25,132.17,127.68]
[1740601132430,0.85783843,132.2,132.17,127.68]
[1740601132602,0.063,132.25,132.17,127.68]
[1740601132603,0.85783843,132.19,132.17,127.68]
[1740601133031,0.85783843,132.24,132.2,20.0]
[1740601133206,0.85783843,132.23,132.2,20.0]
[1740601133622,0.063,132.25,132.17,127.68]
[1740601133623,0.85783843,132.2,132.17,127.68]
[1740601133937,0.85783843,132.19,132.17,127.68]
[1740601134312,0.85783843,132.22,132.2,20.0]
[1740601134513,0.85783843,132.24,132.2,20.0]
[1740601134731,0.85783843,132.22,132.2,20.0]
[1740601134920,0.063,132.25,132.2,20.0]
[1740601135120,0.85783843,132.21,132.17,127.68]
[1740601135323,0.85783843,132.23,132.17,127.68]
[1740601135632,0.92083843,132.25,132.2,20.0]
[1740601135835,0.063,132.25,132.2,20.0]
[1740601136002,0.063,132.25,132.21,21.5875541]
[1740601136198,0.063,132.25,132.24,20.0]
[1740601136603,0.063,132.25,132.24,21.58731465]
[1740601136802,0.063,132.25,132.24,21.87163779]
[1740601137000,0.063,132.25,132.24,22.15596093]
[1740601138307,0.063,132.25,132.24,21.58731465]
[1740601138723,0.063,132.25,132.22,14.2]
[1740601138897,0.063,132.25,132.21,136.8]
[1740601138898,0.063,132.25,132.19,14.16]
[1740601139102,0.063,132.25,132.2,1.58734236]
[1740601139297,0.063,132.25,132.23,0.56864628]
[1740601139509,0.063,132.25,132.24,22.15513791]
[1740601139722,0.063,132.28,132.25,21.56864628]
[1740601139916,0.063,132.28,132.27,0.56864628]
[1740601140124,0.063,132.28,132.27,128.14864628]
[1740601140515,0.063,132.28,132.27,173.93080785]
[1740601140712,0.063,132.28,132.27,128.14864628]
[1740601140909,2.74254028,132.35,132.3,20.0]
[1740601141117,1.88470185,132.35,132.31,0.56864628]
[1740601141428,1.88470185,132.35,132.33,0.71080785]
[1740601141723,1.74260185,132.35,132.34,62.09599007]
[1740601141924,2.7971,132.47,132.38,0.56864628]
[1740601142126,0.85783843,132.52,132.41,20.56864628]
[1740601142300,2.7971,132.55,132.41,36.45531476]
[1740601142622,0.85783843,132.53,132.43,0.14216157]
[1740601142819,0.85783843,132.52,132.45,0.56864628]
[1740601143019,2.65493843,132.55,132.46,1.58390758]
[1740601143219,2.65493843,132.55,132.47,0.56864628]
[1740601143419,2.65493843,132.55,132.48,1.58383018]
[1740601143739,2.65493843,132.55,132.49,14.14]
[1740601143923,87.55493843,132.55,132.45,14.14]
[1740601144239,4.34580969,132.54,132.45,14.14]
[1740601144439,2.65493843,132.55,132.45,14.14]
[1740601144613,2.65493843,132.55,132.46,1.5846225]
[1740601145125,2.65493843,132.55,132.48,20.0]
[1740601145317,1.9461208,132.56,132.5,0.56864628]
[1740601145529,1.9461208,132.56,132.54,20.0]
[1740601145704,1.9461208,132.56,132.55,15.66310192]
[1740601145908,1.9461208,132.56,132.55,16.2317482]
[1740601146122,1.9461208,132.56,132.55,18.2317482]
[1740601146332,10.9868,132.68,132.55,18.2317482]
[1740601146333,0.063,132.68,132.56,0.56864628]
[1740601146533,0.063,132.68,132.58,0.56864628]
[1740601146738,0.063,132.68,132.59,21.58232917]
[1740601147036,0.063,132.68,132.52,1.58259521]
[1740601147037,0.14216157,132.65,132.52,1.58259521]
[1740601147235,0.28432314,132.62,132.53,14.14]
[1740601147414,12.86442314,132.62,132.53,14.14]
[1740601147751,1.0,132.59,132.53,14.14]
[1740601147928,0.28432314,132.57,132.53,14.14]
[1740601148243,0.28432314,132.57,132.53,11.3267]
[1740601148420,2.7314,132.61,132.53,11.3267]
[1740601148746,2.7314,132.61,132.52,1.5840849]
[1740601148747,0.28432314,132.56,132.48,14.12]
[1740601149223,0.28432314,132.59,132.49,1.58421258]
[1740601149413,0.42648471,132.6,132.49,1.58421258]
[1740601149612,1.0,132.55,132.48,14.12]
[1740601150550,1.0,132.55,132.43,127.38]
[1740601150551,6.30281884,132.52,132.43,127.38]
[1740601150751,0.42648471,132.47,132.43,127.38]
[1740601150920,4.18308471,132.47,132.41,14.08]
[1740601151122,4.18308471,132.47,132.35,127.38]
[1740601151123,0.14216157,132.44,132.36,14.06]
[1740601151317,0.42648471,132.43,132.36,14.06]
[1740601151522,0.14216157,132.42,132.35,127.38]
[1740601151833,0.14216157,132.4,132.31,14.06]
[1740601152036,0.14216157,132.39,132.31,14.06]
[1740601152351,0.14216157,132.37,132.31,14.06]
[1740601152548,82.9,132.42,132.34,20.0]
[1740601152852,2.7566,132.47,132.35,0.14216157]
[1740601153017,2.7566,132.47,132.37,0.56864628]
[1740601153213,0.21324235,132.56,132.42,0.56864628]
[1740601153214,10.823,132.56,132.42,0.56864628]
[1740601153438,3.7446367,132.55,132.43,1.58436626]
[1740601153614,10.823,132.56,132.44,0.56864628]
[1740601153820,2.6754,132.57,132.48,20.0]
[1740601154021,2.6754,132.57,132.52,20.0]
[1740601154334,2.6754,132.57,132.49,127.38]
[1740601154524,3.6754,132.57,132.49,127.38]
[1740601154720,1.0,132.56,132.49,127.38]
[1740601154932,0.28432314,132.54,132.49,127.38]
[1740601155241,3.6754,132.57,132.52,20.0]
[1740601155446,7.48447782,132.57,132.49,127.38]
[1740601155748,1.0,132.54,132.49,127.38]
[1740601155926,0.28432314,132.49,132.4,127.36]
[1740601156117,11.60572314,132.49,132.38,14.02]
[1740601156316,0.14216157,132.48,132.38,14.02]
[1740601156540,1.42648471,132.46,132.38,14.02]
[1740601156756,1.0,132.42,132.38,14.02]
[1740601157052,1.42648471,132.41,132.36,127.36]
[1740601157218,0.42648471,132.39,132.33,14.0]
[1740601157420,0.42648471,132.39,132.36,20.0]
[1740601157648,1.42648471,132.39,132.29,173.94616369]
[1740601157847,89.41589309,132.41,132.3,15.59666916]
[1740601157848,0.28432314,132.4,132.3,15.59666916]
[1740601158152,2.6309,132.41,132.33,20.0]
[1740601158321,0.28432314,132.45,132.34,1.58567065]
[1740601158523,82.9,132.47,132.35,0.56864628]
[1740601158749,0.14216157,132.46,132.36,1.58561666]
[1740601158953,13.0991,132.49,132.4,20.0]
[1740601159124,0.42648471,132.47,132.37,14.0]
[1740601159620,0.28432314,132.47,132.4,20.0]
[1740601159926,82.9,132.48,132.41,20.0]
[1740601160129,13.0991,132.49,132.41,20.0]
[1740601160453,0.28432314,132.48,132.41,20.0]
[1740601160626,0.42648471,132.45,132.38,127.36]
[1740601160823,1.42648471,132.45,132.38,127.36]
[1740601161024,0.42648471,132.45,132.38,127.36]
[1740601161318,1.42648471,132.45,132.38,127.36]
[1740601161521,0.28432314,132.43,132.38,127.36]
[1740601161718,0.14216157,132.43,132.38,127.36]
[1740601161936,3.70338546,132.46,132.41,20.0]
[1740601162146,3.87787663,132.47,132.41,20.0]
[1740601162327,0.14216157,132.46,132.41,20.0]
[1740601162522,0.14216157,132.45,132.38,127.36]
[1740601163029,1.42648471,132.41,132.31,37.24044687]
[1740601163231,0.14216157,132.38,132.31,37.24044687]
[1740601163443,0.28432314,132.39,132.35,37.6110291]
[1740601163646,0.28432314,132.37,132.31,37.24044687]
[1740601164428,10.67152314,132.37,132.31,37.24044687]
[1740601164629,0.28432314,132.32,132.3,0.03]
[1740601164936,61.76898836,132.31,132.23,37.27167177]
[1740601165128,1.0,132.3,132.2,37.8437998]
[1740601165323,30.74898423,132.29,132.18,13.86]
[1740601165628,30.74898423,132.29,132.16,219.23]
[1740601165629,35.62203738,132.28,132.16,0.03]
[1740601165941,14.58652828,132.24,132.17,37.04982417]
[1740601166445,1.0,132.2,132.16,0.03]
[1740601166650,30.74898423,132.22,132.16,0.03]
[1740601166861,31.03330737,132.21,132.16,0.03]
[1740601167148,0.74898423,132.2,132.16,0.03]
[1740601167330,0.14216157,132.21,132.16,0.03]
[1740601167526,0.14216157,132.19,132.16,0.03]
[1740601168051,0.74898423,132.21,132.16,0.03]
[1740601168353,0.14216157,132.17,132.16,0.03]
[1740601168531,0.14216157,132.15,132.1,37.35310235]
[1740601168856,0.14216157,132.13,132.07,37.48178212]
[1740601169041,0.14216157,132.13,132.1,20.0]
[1740601169355,13.82,132.12,132.11,12.04817421]
[1740601169528,3.70907321,132.06,131.97,37.13397466]
[1740601169849,1.0,132.09,131.93,37.01966528]
[1740601170157,1.0,132.07,131.96,37.22882472]
[1740601170360,83.9,132.06,131.96,38.22882472]
[1740601170534,82.9,132.05,131.91,37.66711951]
[1740601170734,1.0,132.03,131.91,37.66711951]
[1740601171058,82.9,132.05,131.91,37.66711951]
[1740601171059,82.9,132.04,131.95,1.0]
[1740601171227,1.0,132.04,131.98,1.0]
[1740601171562,1.14216157,132.0,131.95,1.0]
[1740601171730,1.14216157,132.0,131.96,1.0]
[1740601172067,0.14216157,132.07,132.02,1.0]
[1740601172359,0.14216157,132.07,131.97,37.78610596]
[1740601172562,0.14216157,132.07,132.06,1.0]
[1740601172847,0.21324235,132.12,132.06,1.0]
[1740601173047,13.3625,132.15,132.09,1.0]
[1740601173048,14.3625,132.15,132.09,1.0]
[1740601173248,1.0,132.14,132.13,1.0]
[1740601173451,1.0,132.19,132.17,1.0]
[1740601173635,1.0,132.21,132.14,1.0]
[1740601173946,10.7015,132.24,132.09,1.58911911]
[1740601174132,1.0,132.2,132.08,81.17581911]
[1740601174339,1.0,132.18,132.04,37.48523894]
[1740601174537,0.42648471,132.11,132.03,1.0]
[1740601174741,2.01560382,132.11,132.05,20.0]
[1740601174948,0.28432314,132.11,132.06,38.29929905]
[1740601175248,0.28432314,132.16,132.08,37.61013341]
[1740601175552,1.0,132.14,132.02,136.8]
[1740601175757,1.42648471,132.1,131.96,136.8]
[1740601175939,0.42648471,132.06,131.92,1.0]
[1740601176157,1.42648471,132.04,131.92,217.97581911]
[1740601176338,0.28432314,132.02,131.92,218.97581911]
[1740601176538,1.0,132.06,131.92,255.33941935]
[1740601176741,0.28432314,131.99,131.91,37.66711951]
[1740601176951,0.14216157,131.98,131.9,0.5252626]
[1740601177140,0.28432314,131.99,131.92,1.0]
[1740601177337,0.14216157,132.0,131.94,37.52116931]
[1740601177551,0.28432314,132.01,131.94,174.32116931]
[1740601177752,0.28432314,132.04,131.94,174.32116931]
[1740601178054,0.14216157,132.05,131.94,137.8]
[1740601178258,10.4802,132.11,132.01,1.0]
[1740601178436,11.4802,132.11,131.98,37.04954514]
[1740601178638,1.0,132.1,131.98,37.04954514]
[1740601178936,10.4802,132.11,132.01,1.0]
[1740601179332,25.7632602,132.16,132.03,37.79398546]
[1740601179542,1.0,132.12,132.01,37.42863368]
[1740601179745,1.39495093,132.15,132.05,37.12673637]
[1740601179946,1.39495093,132.15,132.04,37.48523894]
[1740601180253,1.0,132.13,132.04,255.46105805]
[1740601180555,0.28432314,132.13,132.02,218.97581911]
[1740601180748,1.28432314,132.11,132.02,217.97581911]
[1740601180954,0.28432314,132.06,131.97,217.97581911]
[1740601181148,20.28432314,132.02,131.94,37.52116931]
[1740601181353,20.28432314,132.02,131.93,217.97581911]
[1740601181354,1.28432314,132.0,131.9,0.5252626]
[1740601181659,11.63885093,132.05,131.9,0.5252626]
[1740601181660,0.14216157,131.97,131.9,0.5252626]
[1740601181834,0.14216157,131.97,131.9,218.50108171]
[1740601182040,1.14216157,131.98,131.96,0.03]
[1740601182235,1.28432314,131.94,131.9,0.5252626]
[1740601182460,1.28432314,131.94,131.84,208.88581911]
[1740601182461,0.28432314,131.89,131.84,0.03]
[1740601182657,0.28432314,131.89,131.85,37.18424907]
[1740601182837,20.28432314,131.89,131.85,37.18424907]
[1740601183044,0.28432314,131.87,131.82,0.03]
[1740601183364,20.28432314,131.87,131.82,0.03]
[1740601183749,0.14216157,131.83,131.74,37.63151383]
[1740601183950,20.14216157,131.79,131.71,37.00558448]
[1740601184260,20.14216157,131.79,131.68,136.83]
[1740601184261,0.14216157,131.79,131.68,136.83]
[1740601184556,1.14216157,131.77,131.68,0.03]
[1740601184759,0.14216157,131.76,131.68,0.03]
[1740601184947,0.14216157,131.77,131.68,0.03]
[1740601185153,0.28432314,131.75,131.68,0.03]
[1740601185345,0.14216157,131.73,131.68,0.03]
[1740601186163,0.42648471,131.78,131.71,0.96111235]
[1740601186370,0.14216157,131.78,131.71,0.96111235]
[1740601186569,0.14216157,131.76,131.68,136.83]
[1740601186742,0.28432314,131.79,131.7,0.96111235]
[1740601186936,24.7632602,131.86,131.7,137.76111235]
[1740601187141,1.0,131.8,131.69,37.44993676]
[1740601187354,0.42648471,131.78,131.69,37.44993676]
[1740601187541,0.28432314,131.78,131.69,37.44993676]
[1740601187861,0.14216157,131.77,131.68,37.2793403]
[1740601188042,0.14216157,131.77,131.68,38.24045265]
[1740601188244,0.14216157,131.77,131.68,37.2793403]
[1740601188650,1.0,131.86,131.7,0.96111235]
[1740601188858,25.7632602,131.84,131.7,136.8]
[1740601189059,0.28432314,131.83,131.68,37.2793403]
[1740601189259,0.14216157,131.78,131.68,37.2793403]
[1740601189461,1.39495093,131.82,131.71,0.96111235]
[1740601189663,24.97650255,131.88,131.72,0.96111235]
[1740601189967,20.0,131.84,131.68,0.03]
[1740601190264,1.28432314,131.8,131.68,0.03]
[1740601190563,1.39495093,131.8,131.68,0.03]
[1740601190756,1.39495093,131.8,131.7,0.96111235]
[1740601190957,1.39495093,131.8,131.69,0.96111235]
[1740601191145,1.39495093,131.8,131.72,0.96111235]
[1740601191460,1.39495093,131.8,131.68,0.03]
[1740601191675,0.28432314,131.76,131.68,0.03]
[1740601192267,0.14216157,131.76,131.68,0.99111235]
[1740601192461,24.7632602,131.9,131.71,0.96111235]
[1740601192768,1.0,131.89,131.74,0.96111235]
[1740601192971,20.0,131.85,131.73,37.49607618]
[1740601193153,27.15821113,131.88,131.74,0.96111235]
[1740601193154,1.53315312,131.88,131.74,0.96111235]
[1740601193351,24.7632602,131.87,131.75,0.96111235]
[1740601193765,1.39495093,131.88,131.76,0.96111235]
[1740601194072,1.39495093,131.88,131.77,0.96111235]
[1740601194468,1.39495093,131.88,131.74,173.93185294]
[1740601194469,10.6876,131.91,131.79,0.96111235]
[1740601194676,10.6876,131.91,131.82,0.96111235]
[1740601194964,0.063,131.87,131.8,0.96111235]
[1740601195175,0.063,131.87,131.79,137.76111235]
[1740601195357,0.063,131.87,131.79,68.78980935]
[1740601195549,0.20516157,131.87,131.75,149.96562846]
[1740601195745,0.20516157,131.87,131.76,0.42648471]
[1740601195746,0.063,131.87,131.76,0.42648471]
[1740601195980,0.063,131.87,131.76,68.78980935]
[1740601196150,10.6876,131.91,131.78,0.28432314]
[1740601196487,7.229663,131.96,131.78,0.14216157]
[1740601196772,7.62461393,131.96,131.79,0.28432314]
[1740601196973,84.50819328,131.96,131.8,0.14216157]
[1740601197181,1.39495093,131.96,131.8,150.2499516]
[1740601197386,12.5591,131.98,131.81,127.96]
[1740601197553,0.14216157,131.94,131.81,196.74980935]
[1740601197749,0.14216157,131.94,131.81,127.96]
[1740601198177,0.28432314,131.94,131.81,127.96]
[1740601198479,0.14216157,131.92,131.81,127.96]
[1740601199272,0.42648471,131.9,131.81,127.96]
[1740601199781,82.9,131.96,131.81,264.76]
[1740601199976,11.5591,131.98,131.82,0.56864628]
[1740601200159,11.5591,131.98,131.81,345.93581911]
[1740601200357,11.5591,131.98,131.82,1.42648471]
[1740601200553,11.5591,131.98,131.86,0.28432314]
[1740601200774,11.3221,132.04,131.86,217.97581911]
[1740601201078,1.0,132.01,131.84,139.5663]
[1740601201273,21.0,132.01,131.84,139.5663]
[1740601201575,20.0,131.99,131.84,139.5663]
[1740601201775,82.9,132.01,131.85,0.14216157]
[1740601201986,0.28432314,131.99,131.84,2.7663]
[1740601202199,0.28432314,131.94,131.78,217.97581911]
[1740601202367,0.28432314,131.87,131.77,2.5438]
[1740601202697,0.14216157,131.87,131.77,2.5438]
[1740601202866,20.28432314,131.86,131.73,127.96]
[1740601203190,103.18432314,131.86,131.73,127.96]
[1740601204059,103.18432314,131.86,131.7,220.61341911]
[1740601204270,0.14216157,131.88,131.72,0.14216157]
[1740601204469,0.14216157,131.83,131.72,217.97581911]
[1740601204677,0.14216157,131.83,131.7,139.4376]
[1740601204858,0.42648471,131.78,131.69,0.03]
[1740601205061,0.42648471,131.74,131.69,0.03]
[1740601205390,0.14216157,131.71,131.66,0.03]
[1740601205556,20.28432314,131.67,131.66,0.03]
[1740601205960,20.14216157,131.67,131.66,0.03]
[1740601206197,20.28432314,131.67,131.66,0.03]
[1740601206367,0.28432314,131.66,131.62,0.03]
[1740601206556,4.74679769,131.7,131.62,0.03]
[1740601206874,0.21324235,131.72,131.62,0.03]
[1740601207068,6.29714426,131.72,131.62,0.03]
[1740601207290,6.29714426,131.72,131.6,3.8922416]
[1740601207461,0.21324235,131.72,131.6,3.8922416]
[1740601207994,0.21324235,131.72,131.6,4.8922416]
[1740601208195,0.21324235,131.72,131.53,136.8]
[1740601208196,0.21324235,131.72,131.53,137.8]
[1740601208483,0.21324235,131.76,131.58,0.14216157]
[1740601208664,0.21324235,131.76,131.58,136.8]
[1740601209064,0.21324235,131.81,131.62,0.42648471]
[1740601209274,0.21324235,131.81,131.65,0.14216157]
[1740601209475,82.9,131.88,131.69,0.14216157]
[1740601209677,128.04,131.89,131.72,0.14216157]
[1740601209985,0.28432314,131.88,131.72,136.8]
[1740601210163,128.04,131.89,131.73,0.14216157]
[1740601210164,128.17820219,131.89,131.73,0.14216157]